fUSD/lending_fUSD_20240122
["ID","MTS","AMOUNT","RATE_DAILY","PERIOD"]
[312476117,1705914667749,-500.0,0.00038356,2]
[312476118,1705914667760,-500.0,0.00038356,2]
[312476119,1705914667768,-580.72,0.00038356,2]
[312476120,1705914667778,-500.0,0.00038356,2]
[312476121,1705914667787,-500.0,0.00038356,2]
[312476122,1705914667797,-500.0,0.00038356,2]
[312476123,1705914667806,-500.0,0.00038356,2]
[312476124,1705914667815,-500.0,0.00038356,2]
[312476125,1705914667824,-500.0,0.00038356,2]
[312476126,1705914667833,-500.0,0.00038356,2]
[312476127,1705914667843,-258.0,0.00038356,2]
[312476128,1705914667852,-9084.96,0.00038356,2]
[312476129,1705914667861,-2155.15,0.00038356,2]
[312476130,1705914667870,-1948.73,0.00038356,2]
[312476131,1705914667879,-2588.72,0.00038356,2]
[312476132,1705914667888,-2556.96,0.00038356,2]
[312476133,1705914667898,-1425.35,0.00038356,2]
[312476134,1705914667907,-500.0,0.00038356,2]
[312476135,1705914667916,-500.0,0.00038356,2]
[312476136,1705914667925,-20120.76,0.00038356,2]
[312476137,1705914667934,-9399.72,0.00038356,2]
[312476138,1705914667944,-1719.12,0.00038356,2]
[312476139,1705914667953,-10881.64,0.00038356,2]
[312476140,1705914667962,-1623.52,0.00038356,2]
[312476141,1705914667971,-1915.76,0.00038356,2]
[312476142,1705914667980,-1317.76,0.00038356,2]
[312476143,1705914667990,-500.0,0.00038356,2]
[312476144,1705914668000,-3164.23,0.00038356,2]
[312476145,1705914668011,-3391.32,0.00038356,2]
[312476146,1705914668021,-691.5,0.00038356,2]
[312476147,1705914668030,-500.0,0.00038356,2]
[312476148,1705914668042,-2579.48,0.00038356,2]
[312476149,1705914668052,-2283.9,0.00038356,2]
[312476150,1705914668061,-2114.33,0.00038356,2]
[312476151,1705914668070,-2418.85,0.00038356,2]
[312476152,1705914668079,-1851.6,0.00038356,2]
[312476153,1705914668089,-15979.24,0.00038356,2]
[312476154,1705914668098,-2715.37,0.00038356,2]
[312476155,1705914668107,-884.03,0.00038356,2]
[312476156,1705914668117,-1908.48,0.00038356,2]
[312476157,1705914668126,-1109.73,0.00038356,2]
[312476158,1705914668135,-500.0,0.00038356,2]
[312476159,1705914668145,-1685.22,0.00038356,2]
[312476160,1705914668154,-2228.77,0.00038356,2]
[312476161,1705914668163,-7168.05,0.00038356,2]
[312476162,1705914668173,-1116.83,0.00038356,2]
[312476163,1705914668182,-3779.34,0.00038356,2]
[312476164,1705914668191,-1330.06,0.00038356,5]
[312476165,1705914668200,-1741.55,0.00038356,2]
[312476166,1705914668210,-1777.64,0.00038356,2]
[312476167,1705914668219,-1011.11,0.00038356,2]
[312476168,1705914668228,-2661.27,0.00038356,2]
[312476169,1705914668238,-500.0,0.00038356,2]
[312476170,1705914668247,-1185.36,0.00038356,2]
[312476171,1705914668257,-3937.98,0.00038356,2]
[312476172,1705914668266,-810.18,0.00038356,2]
[312476173,1705914668275,-500.0,0.00038356,2]
[312476174,1705914668285,-1931.02,0.00038356,2]
[312476175,1705914668294,-2505.62,0.00038356,2]
[312476176,1705914668304,-1461.33,0.00038356,2]
[312476177,1705914668313,-1877.01,0.00038356,2]
[312476178,1705914668323,-546.86,0.00038356,2]
[312476179,1705914668332,-1238.22,0.00038356,2]
[312476180,1705914668342,-1068.11,0.00038356,2]
[312476181,1705914668352,-223.92,0.00038356,2]
[312476182,1705914668361,-2966.9,0.00038356,2]
[312476183,1705914668370,-1841.02,0.00038356,2]
[312476184,1705914668379,-15618.6,0.00038356,2]
[312476185,1705914668388,-2176.1,0.00038356,2]
[312476186,1705914668397,-3600.34,0.00038356,2]
[312476187,1705914668407,-5972.27,0.00038356,2]
[312476188,1705914668415,-2137.42,0.00038356,2]
[312476189,1705914668424,-1444.59,0.00038356,2]
[312476190,1705914668433,-1672.06,0.00038356,2]
[312476191,1705914668442,-1617.14,0.00038356,2]
[312476192,1705914668451,-2320.89,0.00038356,2]
[312476193,1705914668460,-500.0,0.00038356,2]
[312476194,1705914668469,-2673.93,0.00038356,2]
[312476195,1705914668478,-1397.48,0.00038356,2]
[312476196,1705914668488,-1957.68,0.00038356,2]
[312476197,1705914668497,-1121.86,0.00038356,2]
[312476198,1705914668506,-1771.78,0.00038356,2]
[312476199,1705914668515,-1616.61,0.00038356,2]
[312476200,1705914668524,-500.0,0.00038356,2]
[312476201,1705914668533,-2105.96,0.00038356,2]
[312476202,1705914668542,-2200.56,0.00038356,2]
[312476203,1705914668551,-7868.84,0.00038356,2]
[312476204,1705914668560,-1083.88,0.00038356,2]
[312476205,1705914668569,-2499.96,0.00038356,2]
[312476206,1705914668578,-564.78,0.00038356,2]
[312476207,1705914668587,-1819.55,0.00038356,2]
[312476208,1705914668597,-1005.0,0.00038356,2]
[312476209,1705914668606,-1505.87,0.00038356,2]
[312476210,1705914668615,-1714.05,0.00038356,2]
[312476211,1705914668624,-1576.22,0.00038356,2]
[312476212,1705914668633,-2474.8,0.00038356,2]
[312476213,1705914668643,-500.0,0.00038356,2]
[312476214,1705914668652,-1203.41,0.00038356,2]
[312476215,1705914668661,-1248.09,0.00038356,2]
[312476216,1705914668670,-438.0,0.00038365,2]
[312476217,1705914668680,-350.92,0.00038396,2]
[312476218,1705914668689,-1817.691267,0.000384,13]
[312476219,1705914668698,-751.0,0.00038435,5]
[312476220,1705914668708,-7195.27991953,0.0003846,11]
[312476221,1705914668717,-1560.0,0.000385,7]
[312476222,1705914668726,-185.88314294,0.00038515,3]
[312476223,1705914668736,-823.02,0.00038546,7]
[312476224,1705914668745,-979.08,0.00038547,7]
[312476225,1705914668755,-500.0,0.00038547,7]
[312476226,1705914668764,-1257.37,0.00038547,7]
[312476227,1705914668773,-500.0,0.00038547,7]
[312476228,1705914668783,-717.25,0.00038547,7]
[312476229,1705914668792,-1160.01,0.00038547,7]
[312476230,1705914668801,-504.83262459,0.00038547,7]
[312476231,1705914668810,-510.35184788,0.00038547,7]
[312476232,1705914668820,-830.4,0.00038547,7]
[312476233,1705914668829,-1012.38,0.00038547,7]
[312476234,1705914668838,-1023.71,0.00038547,7]
[312476235,1705914668847,-500.0,0.00038547,7]
[312476236,1705914668856,-808.76,0.00038547,7]
[312476237,1705914668865,-500.0,0.00038547,7]
[312476238,1705914668874,-1069.89,0.00038547,7]
[312476239,1705914668883,-537.53,0.00038547,7]
[312476240,1705914668893,-1135.45,0.00038547,7]
[312476241,1705914668902,-500.0,0.00038547,7]
[312476242,1705914668911,-929.43,0.00038547,7]
[312476243,1705914668921,-1239.76,0.00038547,7]
[312476244,1705914668929,-1105.75,0.00038547,7]
[312476245,1705914668939,-652.95,0.00038547,7]
[312476246,1705914668948,-914.95,0.00038547,7]
[312476247,1705914668957,-1423.28,0.00038547,7]
[312476248,1705914668966,-743.47,0.00038547,7]
[312476249,1705914668975,-500.0,0.00038547,7]
[312476250,1705914668984,-986.57,0.00038547,7]
[312476251,1705914668994,-500.0,0.00038547,7]
[312476252,1705914669002,-500.0,0.00038547,7]
[312476253,1705914669015,-500.0,0.00038547,7]
[312476254,1705914669025,-897.88,0.00038547,7]
[312476255,1705914669034,-1449.85,0.00038547,7]
[312476256,1705914669043,-914.68,0.00038547,7]
[312476257,1705914669054,-500.0,0.00038547,7]
[312476258,1705914669063,-737.7,0.00038547,7]
[312476259,1705914669072,-1659.17,0.00038547,7]
[312476260,1705914669081,-803.4,0.00038547,7]
[312476261,1705914669091,-1605.79,0.00038547,7]
[312476262,1705914669102,-1579.05,0.00038547,7]
[312476263,1705914669111,-1008.66,0.00038547,7]
[312476264,1705914669121,-500.0,0.00038547,7]
[312476265,1705914669130,-583.09,0.00038547,7]
[312476266,1705914669139,-1055.38,0.00038547,7]
[312476267,1705914669148,-517.88,0.00038547,7]
[312476268,1705914669157,-500.0,0.00038547,7]
[312476269,1705914669167,-1023.0,0.00038547,7]
[312476270,1705914669176,-1009.94,0.00038547,7]
[312476271,1705914669185,-841.98,0.00038547,7]
[312476272,1705914669194,-500.0,0.00038547,7]
[312476273,1705914669204,-2033.13,0.00038547,7]
[312476274,1705914669215,-1403.75,0.00038547,7]
[312476275,1705914669224,-831.08,0.00038547,7]
[312476276,1705914669233,-500.0,0.00038547,7]
[312476277,1705914669243,-1196.07,0.00038547,7]
[312476278,1705914669253,-772.45,0.00038547,7]
[312476279,1705914669262,-1092.52,0.00038547,7]
[312476280,1705914669271,-1365.43,0.00038547,7]
[312476281,1705914669281,-1211.45,0.00038547,7]
[312476282,1705914669289,-500.0,0.00038547,7]
[312476283,1705914669298,-1340.28,0.00038547,7]
[312476284,1705914669308,-1993.76,0.00038547,7]
[312476285,1705914669316,-987.61,0.00038547,7]
[312476286,1705914669326,-1569.36,0.00038547,7]
[312476287,1705914669335,-500.0,0.00038547,7]
[312476288,1705914669344,-799.42,0.00038547,7]
[312476289,1705914669353,-1246.98,0.00038547,7]
[312476290,1705914669362,-683.97,0.00038547,7]
[312476291,1705914669371,-1203.65,0.00038547,7]
[312476292,1705914669379,-896.56,0.00038547,7]
[312476293,1705914669388,-500.0,0.00038547,7]
[312476294,1705914669397,-500.0,0.00038547,7]
[312476295,1705914669407,-204.3,0.00038547,7]
[312476296,1705914669415,-500.0,0.00038547,7]
[312476297,1705914669424,-1209.08,0.00038547,7]
[312476298,1705914669434,-374.76,0.00038547,7]
[312476299,1705914669443,-1375.32,0.00038547,7]
[312476300,1705914669452,-763.18,0.00038547,7]
[312476301,1705914669461,-1037.24,0.00038547,7]
[312476302,1705914669470,-1733.4,0.00038547,7]
[312476303,1705914669479,-1973.64,0.00038547,7]
[312476304,1705914669490,-1484.25,0.00038547,7]
[312476305,1705914669499,-500.0,0.00038547,7]
[312476306,1705914669507,-957.17,0.00038547,7]
[312476307,1705914669516,-1102.62,0.00038547,7]
[312476308,1705914669526,-1485.82,0.00038547,7]
[312476309,1705914669534,-1115.92,0.00038547,7]
[312476310,1705914669543,-1377.41,0.00038547,7]
[312476311,1705914669552,-1699.3,0.00038547,7]
[312476312,1705914669561,-485.37,0.00038547,7]
[312476313,1705914669571,-1178.85,0.00038547,7]
[312476314,1705914669579,-1446.89,0.00038547,7]
[312476315,1705914669588,-1510.53,0.00038547,7]
[312476316,1705914669597,-500.0,0.00038547,7]
[312476317,1705914669606,-1980.04,0.00038547,7]
[312476318,1705914669615,-1247.41,0.00038547,7]
[312476319,1705914669625,-691.34,0.00038547,7]
[312476320,1705914669634,-500.0,0.00038547,7]
[312476321,1705914669643,-934.33,0.00038547,7]
[312476322,1705914669652,-1393.45,0.00038547,7]
[312476323,1705914669661,-880.82,0.00038547,7]
[312476324,1705914669670,-526.87,0.00038547,7]
[312476325,1705914669679,-500.0,0.00038547,7]
[312476326,1705914669688,-1237.21,0.00038547,7]
[312476327,1705914669697,-1367.31,0.00038547,7]
[312476328,1705914669705,-695.55,0.00038547,7]
[312476329,1705914669714,-991.92,0.00038547,7]
[312476330,1705914669723,-682.88,0.00038547,7]
[312476331,1705914669732,-1499.08,0.00038547,7]
[312476332,1705914669743,-500.0,0.00038547,7]
[312476333,1705914669752,-1106.45,0.00038547,7]
[312476334,1705914669762,-1266.44,0.00038547,7]
[312476335,1705914669771,-500.0,0.00038547,7]
[312476336,1705914669780,-883.81,0.00038547,7]
[312476337,1705914669789,-500.0,0.00038547,7]
[312476338,1705914669798,-806.54,0.00038547,7]
[312476339,1705914669808,-650.0,0.0003863,30]
[312476340,1705914669817,-650.0,0.0003863,30]
[312476341,1705914669826,-650.0,0.0003863,30]
[312476342,1705914669835,-650.0,0.0003863,30]
[312476343,1705914669844,-650.0,0.0003863,30]
[312476344,1705914669853,-650.0,0.0003863,30]
[312476345,1705914669862,-650.0,0.0003863,30]
[312476346,1705914669871,-650.0,0.0003863,30]
[312476347,1705914669880,-650.0,0.0003863,30]
[312476348,1705914669888,-650.0,0.0003863,30]
[312476349,1705914669897,-650.0,0.0003863,30]
[312476350,1705914669907,-301.96,0.0003863,2]
[312476351,1705914669915,-150.0,0.00038696,7]
[312476352,1705914669925,-150.0,0.00038696,7]
[312476353,1705914669934,-823.02,0.00038699,7]
[312476354,1705914669943,-150.0,0.00038699,2]
[312476355,1705914669951,-150.0,0.00038699,2]
[312476356,1705914669960,-27809.34,0.000387,4]
[312476357,1705914669969,-7195.27991953,0.00038704,12]
[312476358,1705914669978,-2000.0,0.00038709,2]
[312476359,1705914669989,-200.0,0.00038709,2]
[312476360,1705914669998,-201.0,0.0003879,3]
[312476361,1705914670008,-823.02,0.00038802,7]
[312476362,1705914670017,-500.0,0.00038803,7]
[312476363,1705914670027,-501.47762087,0.00038803,7]
[312476364,1705914670037,-424.10754247,0.00038803,7]
[312476365,1705914670048,-614.28091124,0.00038803,7]
[312476366,1705914670057,-500.0,0.00038803,7]
[312476367,1705914670066,-500.0,0.00038803,7]
[312476368,1705914670076,-502.89902398,0.00038803,7]
[312476369,1705914670086,-348.47488398,0.00038803,7]
[312476370,1705914670095,-500.0,0.00038803,7]
[312476371,1705914670104,-500.0,0.00038803,7]
[312476372,1705914670115,-766.75,0.00038803,7]
[312476373,1705914670124,-500.0,0.00038803,7]
[312476374,1705914670134,-500.0,0.00038803,7]
[312476375,1705914670143,-687.6,0.00038803,7]
[312476376,1705914670152,-500.0,0.00038803,7]
[312476377,1705914670162,-1238.49,0.00038803,7]
[312476378,1705914670171,-851.16,0.00038803,7]
[312476379,1705914670180,-500.0,0.00038803,7]
[312476380,1705914670190,-502.36980461,0.00038803,7]
[312476381,1705914670199,-500.0,0.00038803,7]
[312476382,1705914670208,-500.0,0.00038803,7]
[312476383,1705914670217,-511.46942104,0.00038803,7]
[312476384,1705914670226,-500.0,0.00038803,7]
[312476385,1705914670237,-553.55704383,0.00038803,7]
[312476386,1705914670246,-760.75,0.00038803,7]
[312476387,1705914670254,-503.67380825,0.00038803,7]
[312476388,1705914670263,-500.0,0.00038803,7]
[312476389,1705914670273,-500.0,0.00038803,7]
[312476390,1705914670282,-500.0,0.00038803,7]
[312476391,1705914670291,-587.32989702,0.00038803,7]
[312476392,1705914670300,-500.0,0.00038803,7]
[312476393,1705914670309,-500.0,0.00038803,7]
[312476394,1705914670318,-500.0,0.00038803,7]
[312476395,1705914670328,-500.0,0.00038803,7]
[312476396,1705914670337,-1003.69,0.00038803,7]
[312476397,1705914670347,-500.0,0.00038803,7]
[312476398,1705914670356,-500.0,0.00038803,7]
[312476399,1705914670366,-500.0,0.00038803,7]
[312476400,1705914670375,-500.0,0.00038803,7]
[312476401,1705914670384,-504.99746824,0.00038803,7]
[312476402,1705914670393,-500.0,0.00038803,7]
[312476403,1705914670402,-500.0,0.00038803,7]
[312476404,1705914670412,-500.0,0.00038803,7]
[312476405,1705914670421,-500.0,0.00038803,7]
[312476406,1705914670430,-500.0,0.00038803,7]
[312476407,1705914670439,-500.0,0.00038803,7]
[312476408,1705914670448,-500.0,0.00038803,7]
[312476409,1705914670458,-500.0,0.00038803,7]
[312476410,1705914670466,-500.0,0.00038803,7]
[312476411,1705914670475,-500.0,0.00038803,7]
[312476412,1705914670654,-500.0,0.00038803,7]
[312476413,1705914670670,-941.8,0.00038803,7]
[312476414,1705914670680,-500.0,0.00038803,7]
[312476415,1705914670689,-500.0,0.00038803,7]
[312476416,1705914670698,-500.0,0.00038803,7]
[312476417,1705914670707,-500.0,0.00038803,7]
[312476418,1705914670717,-521.22,0.00038803,7]
[312476419,1705914670725,-855.58,0.00038803,7]
[312476420,1705914670735,-1000.0,0.00038803,7]
[312476421,1705914670746,-500.0,0.00038803,7]
[312476422,1705914670756,-500.0,0.00038803,7]
[312476423,1705914670765,-754.18,0.00038803,7]
[312476424,1705914670774,-500.0,0.00038803,7]
[312476425,1705914670783,-500.0,0.00038803,7]
[312476426,1705914670793,-500.0,0.00038803,7]
[312476427,1705914670802,-872.76,0.00038803,7]
[312476428,1705914670811,-500.0,0.00038803,7]
[312476429,1705914670821,-653.96,0.00038803,7]
[312476430,1705914670830,-597.95,0.00038803,7]
[312476431,1705914670840,-500.0,0.00038803,7]
[312476432,1705914670849,-500.0,0.00038803,7]
[312476433,1705914670858,-500.0,0.00038803,7]
[312476434,1705914670868,-506.66,0.00038803,7]
[312476435,1705914670877,-500.0,0.00038803,7]
[312476436,1705914670887,-500.0,0.00038803,7]
[312476437,1705914670896,-500.0,0.00038803,7]
[312476438,1705914670905,-503.8249234,0.00038803,7]
[312476439,1705914670914,-618.43,0.00038803,7]
[312476440,1705914670925,-500.0,0.00038803,7]
[312476441,1705914670935,-608.11,0.00038803,7]
[312476442,1705914670944,-504.80792839,0.00038803,7]
[312476443,1705914670954,-500.0,0.00038803,7]
[312476444,1705914670964,-500.0,0.00038803,7]
[312476445,1705914670974,-500.0,0.00038803,7]
[312476446,1705914670983,-500.0,0.00038803,7]
[312476447,1705914670995,-413.49004063,0.00038803,7]
[312476448,1705914671005,-500.0,0.00038803,7]
[312476449,1705914671016,-500.0,0.00038803,7]
[312476450,1705914671026,-500.99788768,0.00038803,7]
[312476451,1705914671038,-500.0,0.00038803,7]
[312476452,1705914671048,-500.0,0.00038803,7]
[312476453,1705914671058,-500.0,0.00038803,7]
[312476454,1705914671068,-500.0,0.00038803,7]
[312476455,1705914671078,-500.0,0.00038803,7]
[312476456,1705914671087,-500.0,0.00038803,7]
[312476457,1705914671098,-500.0,0.00038803,7]
[312476458,1705914671108,-500.0,0.00038803,7]
[312476459,1705914671117,-500.0,0.00038803,7]
[312476460,1705914671127,-500.0,0.00038803,7]
[312476461,1705914671136,-500.0,0.00038803,7]
[312476462,1705914671146,-500.0,0.00038803,7]
[312476463,1705914671156,-503.56000445,0.00038803,7]
[312476464,1705914671166,-648.82,0.00038803,7]
[312476465,1705914671175,-497.44803774,0.00038803,7]
[312476466,1705914671185,-500.0,0.00038803,7]
[312476467,1705914671194,-500.0,0.00038803,7]
[312476468,1705914671203,-500.0,0.00038803,7]
[312476469,1705914671213,-377.27028833,0.00038803,7]
[312476470,1705914671223,-500.0,0.00038803,7]
[312476471,1705914671232,-151.11854752,0.00038803,7]
[312476472,1705914671244,-500.0,0.00038803,7]
[312476473,1705914671254,-591.19,0.00038803,7]
[312476474,1705914671263,-500.0,0.00038803,7]
[312476475,1705914671272,-546.86111087,0.00038803,7]
[312476476,1705914671282,-500.0,0.00038803,7]
[312476477,1705914671291,-500.0,0.00038803,7]
[312476478,1705914671301,-500.0,0.00038803,7]
[312476479,1705914671310,-500.0,0.00038803,7]
[312476480,1705914671320,-801.67,0.00038803,7]
[312476481,1705914671329,-500.0,0.00038803,7]
[312476482,1705914671338,-500.0,0.00038803,7]
[312476483,1705914671348,-500.0,0.00038803,7]
[312476484,1705914671357,-500.0,0.00038803,7]
[312476485,1705914671366,-500.0,0.00038803,7]
[312476486,1705914671375,-500.0,0.00038803,7]
[312476487,1705914671385,-500.0,0.00038803,7]
[312476488,1705914671394,-500.0,0.00038803,7]
[312476489,1705914671403,-250.0,0.00038803,7]
[312476490,1705914671412,-500.0,0.00038803,2]
[312476491,1705914671422,-500.0,0.00038803,7]
[312476492,1705914671431,-500.0,0.00038803,7]
[312476493,1705914671440,-500.0,0.00038803,7]
[312476494,1705914671449,-500.0,0.00038803,7]
[312476495,1705914671459,-589.82,0.00038803,7]
[312476496,1705914671467,-1099.01,0.00038803,7]
[312476497,1705914671477,-500.0,0.00038803,7]
[312476498,1705914671486,-500.0,0.00038803,7]
[312476499,1705914671496,-500.0,0.00038803,7]
[312476500,1705914671505,-500.0,0.00038803,7]
[312476501,1705914671514,-500.0,0.00038803,7]
[312476502,1705914671523,-820.27,0.00038803,7]
[312476503,1705914671532,-500.0,0.00038803,7]
[312476504,1705914671541,-500.0,0.00038803,7]
[312476505,1705914671550,-500.0,0.00038803,7]
[312476506,1705914671559,-500.0,0.00038803,7]
[312476507,1705914671568,-578.19,0.00038803,7]
[312476508,1705914671577,-500.0,0.00038803,7]
[312476509,1705914671587,-842.82,0.00038803,7]
[312476510,1705914671595,-842.26,0.00038803,7]
[312476511,1705914671605,-500.0,0.00038803,7]
[312476512,1705914671614,-500.0,0.00038803,7]
[312476513,1705914671623,-500.0,0.00038803,7]
[312476514,1705914671633,-500.0,0.00038803,7]
[312476515,1705914671642,-500.0,0.00038803,7]
[312476516,1705914671652,-500.0,0.00038803,7]
[312476517,1705914671661,-500.0,0.00038803,7]
[312476518,1705914671670,-500.0,0.00038803,7]
[312476519,1705914671679,-500.0,0.00038803,7]
[312476520,1705914671688,-500.0,0.00038803,7]
[312476521,1705914671698,-500.0,0.00038803,7]
[312476522,1705914671707,-502.95704771,0.00038803,7]
[312476523,1705914671716,-500.0,0.00038803,7]
[312476524,1705914671725,-500.0,0.00038803,7]
[312476525,1705914671734,-1017.92,0.00038803,7]
[312476526,1705914671743,-500.0,0.00038803,7]
[312476527,1705914671753,-849.02,0.00038803,7]
[312476528,1705914671762,-500.0,0.00038803,7]
[312476529,1705914671771,-682.29,0.00038803,7]
[312476530,1705914671781,-884.04,0.00038803,7]
[312476531,1705914671791,-500.0,0.00038803,7]
[312476532,1705914671801,-500.0,0.00038803,7]
[312476533,1705914671810,-500.0,0.00038803,7]
[312476534,1705914671819,-500.0,0.00038803,7]
[312476535,1705914671828,-500.0,0.00038803,7]
[312476536,1705914671837,-258.0,0.00038803,7]
[312476537,1705914671847,-612.05,0.00038803,7]
[312476538,1705914671856,-500.0,0.00038803,7]
[312476539,1705914671865,-1528.52,0.00038803,7]
[312476540,1705914671874,-500.0,0.00038803,7]
[312476541,1705914671883,-500.0,0.00038803,7]
[312476542,1705914671893,-822.77,0.00038803,7]
[312476543,1705914671902,-1134.08,0.00038803,7]
[312476544,1705914671911,-1407.45,0.00038803,7]
[312476545,1705914671921,-921.33,0.00038803,7]
[312476546,1705914671931,-500.0,0.00038803,7]
[312476547,1705914671941,-500.0,0.00038803,7]
[312476548,1705914671950,-586.66,0.00038803,7]
[312476549,1705914671959,-500.0,0.00038803,7]
[312476550,1705914671969,-500.0,0.00038803,7]
[312476551,1705914671979,-500.0,0.00038803,7]
[312476552,1705914671989,-917.3,0.00038803,7]
[312476553,1705914671999,-500.0,0.00038803,7]
[312476554,1705914672010,-500.0,0.00038803,7]
[312476555,1705914672019,-1435.5,0.00038803,7]
[312476556,1705914672036,-770.08,0.00038803,7]
[312476557,1705914672045,-542.57,0.00038803,7]
[312476558,1705914672055,-500.0,0.00038803,7]
[312476559,1705914672065,-1237.08,0.00038803,7]
[312476560,1705914672074,-500.0,0.00038803,7]
[312476561,1705914672083,-511.02284619,0.00038803,7]
[312476562,1705914672093,-1515.84,0.00038803,7]
[312476563,1705914672103,-500.0,0.00038803,7]
[312476564,1705914672112,-500.0,0.00038803,7]
[312476565,1705914672121,-500.0,0.00038803,7]
[312476566,1705914672131,-500.0,0.00038803,7]
[312476567,1705914672140,-500.0,0.00038803,7]
[312476568,1705914672150,-2581.46,0.00038803,7]
[312476569,1705914672159,-500.0,0.00038803,7]
[312476570,1705914672168,-500.0,0.00038803,7]
[312476571,1705914672178,-500.0,0.00038803,7]
[312476572,1705914672187,-776.21,0.00038803,7]
[312476573,1705914672197,-500.0,0.00038803,7]
[312476574,1705914672206,-719.16,0.00038803,7]
[312476575,1705914672216,-500.0,0.00038803,7]
[312476576,1705914672225,-500.0,0.00038803,7]
[312476577,1705914672235,-500.0,0.00038803,7]
[312476578,1705914672245,-500.0,0.00038803,7]
[312476579,1705914672254,-500.0,0.00038803,7]
[312476580,1705914672265,-500.0,0.00038803,7]
[312476581,1705914672274,-617.07,0.00038803,7]
[312476582,1705914672284,-834.1,0.00038803,7]
[312476583,1705914672294,-500.0,0.00038803,7]
[312476584,1705914672303,-500.0,0.00038803,7]
[312476585,1705914672312,-500.0,0.00038803,7]
[312476586,1705914672321,-600.54414008,0.00038803,7]
[312476587,1705914672330,-500.0,0.00038803,7]
[312476588,1705914672340,-500.0,0.00038803,7]
[312476589,1705914672349,-505.96285274,0.00038803,7]
[312476590,1705914672359,-1000.0,0.00038803,7]
[312476591,1705914672368,-500.0,0.00038803,7]
[312476592,1705914672378,-500.0,0.00038803,7]
[312476593,1705914672387,-515.53093742,0.00038803,7]
[312476594,1705914672396,-500.0,0.00038803,7]
[312476595,1705914672406,-500.0,0.00038803,7]
[312476596,1705914672416,-500.0,0.00038803,7]
[312476597,1705914672426,-500.0,0.00038803,7]
[312476598,1705914672436,-1025.87,0.00038803,7]
[312476599,1705914672447,-500.0,0.00038803,7]
[312476600,1705914672458,-500.0,0.00038803,7]
[312476601,1705914672470,-509.44002575,0.00038803,7]
[312476602,1705914672480,-500.0,0.00038803,7]
[312476603,1705914672492,-500.0,0.00038803,7]
[312476604,1705914672502,-500.0,0.00038803,7]
[312476605,1705914672512,-500.0,0.00038803,7]
[312476606,1705914672522,-500.0,0.00038803,7]
[312476607,1705914672532,-1481.97,0.00038803,7]
[312476608,1705914672541,-500.0,0.00038803,7]
[312476609,1705914672550,-500.0,0.00038803,7]
[312476610,1705914672560,-500.0,0.00038803,7]
[312476611,1705914672569,-500.0,0.00038803,7]
[312476612,1705914672579,-920.5,0.00038803,7]
[312476613,1705914672588,-1091.97,0.00038803,7]
[312476614,1705914672598,-500.0,0.00038803,7]
[312476615,1705914672607,-609.57628191,0.00038803,7]
[312476616,1705914672616,-1134.25,0.00038803,7]